Workbook

Sheet kv2023
B1: Berechnung des KV-Abschlusses 2023 und 2024 für den Eisenbahnbereich
B3: Brutto IST-Lohn/Gehalt Nov. 2022 (ohne SZ) | E3: 1758.89 | L3: KV-EU u. DBO | N3: ÖBB-AVB **)
B4: Brutto IST-Lohn/Gehalt ab Dez. 2022 | E4: =I25 -> 1968.89 | G4: =E4-$E$3 -> 210 | I4: Dein PLUS 12/22 - 11/23 (inkl. Sonderzahlungen) | L4: =I39 -> 3260 | N4: =N39 -> 3200.02
B5: Brutto IST-Lohn/Gehalt ab Juli 2023 *) | E5: =I32 -> 2008.89 | G5: =E5-$E$3 -> 250 | I5: zusätzlich PLUS 12/23 - 11/24 (inkl. Sonderzahlungen) | L5: =I58 -> 2660 | N5: =N58 -> 2660
B6: Brutto IST-Lohn/Gehalt ab Nov. 2023 *) | E6: =I36/2 -> 2048.89 | G6: 290 | I6: GESAMTBETRAG aus dem Abschluss 2023/24 | L6: =L4+Q57 -> 9980 | N6: =N4+S57 -> 9920.02
B7: Brutto IST-Lohn/Gehalt ab Dez. 2023 | E7: =I44 -> 2238.89 | G7: 480 | I7: Ausbezahlte Teuerungsprämie (22/23) | L7: 1800 | N7: 1800
B8: *) Auswirkungen nur wenn Mindestbeiträge Anwendung finden **) die Differenz zwischen KV-EU u. AVB ergeben sich unterschiedliche Auszahlung der Sonderzahlung | I8: SUMME | L8: =SUM(L6:M7) -> 11780 | N8: =SUM(N6:O7) -> 11720.02
I10: Durchschnittliche*) Prozentuelle Erhöhung
B11: 0.083 | I11: 11/22 - 12/23 | L11: =I40 -> 0.1323886899 | N11: =N40 -> 0.1299529005
I12: 11/23 - 12/24 | L12: =I59 -> 0.09273313843 | N12: =N59 -> 0.09273313843
E14: Dein Einkommen wurde durch diesen Abschluss seit 11/22 nachhaltig erhöht. Deine Erhöhung seit 11/22 beträgt somit: | L14: =I54/H25-1 -> 0.2728993854
B17: Detailberechnung
B20: Brutto - IST vor Gehaltserhöhung | E20: =E3 -> 1758.89 | H20: Berechnungsbasis = Vollzeit
C23: Abschluss | H23: DBO u. KV-EU | M23: AVB
C24: % | D24: min | E24: max | H24: alt | I24: neu | M24: alt | N24: neu
B25: 2022-12-01 | C25: 0.08 | D25: 210 | E25: 650 | H25: =$E$20 -> 1758.89 | I25: =ROUND(IF($E$20*$C25<$D25,$D25,IF($E$20*$C25>$E25,$E25,$E$20*$C25))+$E$20,2) -> 1968.89 | J25: =I25/H25-1 -> 0.1193934811 | L25: mit SZ | M25: =$E$20*1.5 -> 2638.335 | N25: =ROUND((IF($E$20*$C25<$D25,$D25,IF($E$20*$C25>$E25,$E25,$E$20*$C25))+$E$20)*1.5,2) -> 2953.34
B26: 2023-01-01 | C26: =C25 -> 0.08 | D26: =D25 -> 210 | E26: =E25 -> 650 | H26: 1758.89 | I26: 1968.89 | J26: =I26/H26-1 -> 0.1193934811 | M26: =$E$20 -> 1758.89 | N26: =ROUND(IF($E$20*$C26<$D26,$D26,IF($E$20*$C26>$E26,$E26,$E$20*$C26))+$E$20,2) -> 1968.89
B27: 2023-02-01 | C27: =C26 -> 0.08 | D27: =D26 -> 210 | E27: =E26 -> 650 | H27: 1758.89 | I27: 1968.89 | J27: 0.1193934811 | M27: =$E$20 -> 1758.89 | N27: =ROUND(IF($E$20*$C27<$D27,$D27,IF($E$20*$C27>$E27,$E27,$E$20*$C27))+$E$20,2) -> 1968.89
B28: 2023-03-01 | C28: 0.08 | D28: 210 | E28: 650 | H28: 1758.89 | I28: 1968.89 | J28: 0.1193934811 | L28: mit SZ | M28: =$E$20*1.5 -> 2638.335 | N28: =ROUND((IF($E$20*$C28<$D28,$D28,IF($E$20*$C28>$E28,$E28,$E$20*$C28))+$E$20)*1.5,2) -> 2953.34
B29: 2023-04-01 | C29: 0.08 | D29: 210 | E29: 650 | H29: 1758.89 | I29: 1968.89 | J29: 0.1193934811 | M29: =$E$20 -> 1758.89 | N29: =ROUND(IF($E$20*$C29<$D29,$D29,IF($E$20*$C29>$E29,$E29,$E$20*$C29))+$E$20,2) -> 1968.89
B30: 2023-05-01 | C30: 0.08 | D30: 210 | E30: 650 | H30: 1758.89 | I30: 1968.89 | J30: 0.1193934811 | M30: =$E$20 -> 1758.89 | N30: =ROUND(IF($E$20*$C30<$D30,$D30,IF($E$20*$C30>$E30,$E30,$E$20*$C30))+$E$20,2) -> 1968.89
B31: 2023-06-01 | C31: 0.08 | D31: 210 | E31: 650 | G31: mit SZ | H31: =$E$20*2 -> 3517.78 | I31: =ROUND((IF($E$20*$C31<$D31,$D31,IF($E$20*$C31>$E31,$E31,$E$20*$C31))+$E$20)*2,2) -> 3937.78 | J31: 0.1193934811 | L31: mit SZ | M31: =$E$20*1.5 -> 2638.335 | N31: =ROUND((IF($E$20*$C31<$D31,$D31,IF($E$20*$C31>$E31,$E31,$E$20*$C31))+$E$20)*1.5,2) -> 2953.34
B32: 2023-07-01 | C32: 0.08 | D32: 250 | E32: 650 | H32: =$E$20 -> 1758.89 | I32: =ROUND(IF($E$20*$C32<$D32,$D32,IF($E$20*$C32>$E32,$E32,$E$20*$C32))+$E$20,2) -> 2008.89 | J32: 0.1421350966 | M32: =$E$20 -> 1758.89 | N32: =ROUND(IF($E$20*$C32<$D32,$D32,IF($E$20*$C32>$E32,$E32,$E$20*$C32))+$E$20,2) -> 2008.89
B33: 2023-08-01 | C33: 0.08 | D33: 250 | E33: 650 | H33: =$E$20 -> 1758.89 | I33: =ROUND(IF($E$20*$C33<$D33,$D33,IF($E$20*$C33>$E33,$E33,$E$20*$C33))+$E$20,2) -> 2008.89 | J33: 0.1421350966 | M33: =$E$20 -> 1758.89 | N33: =ROUND(IF($E$20*$C33<$D33,$D33,IF($E$20*$C33>$E33,$E33,$E$20*$C33))+$E$20,2) -> 2008.89
B34: 2023-09-01 | C34: 0.08 | D34: 250 | E34: 650 | H34: =$E$20 -> 1758.89 | I34: =ROUND(IF($E$20*$C34<$D34,$D34,IF($E$20*$C34>$E34,$E34,$E$20*$C34))+$E$20,2) -> 2008.89 | J34: 0.1421350966 | L34: mit SZ | M34: =$E$20*1.5 -> 2638.335 | N34: =ROUND((IF($E$20*$C34<$D34,$D34,IF($E$20*$C34>$E34,$E34,$E$20*$C34))+$E$20)*1.5,2) -> 3013.34
B35: 2023-10-01 | C35: 0.08 | D35: 250 | E35: 650 | H35: =$E$20 -> 1758.89 | I35: =ROUND(IF($E$20*$C35<$D35,$D35,IF($E$20*$C35>$E35,$E35,$E$20*$C35))+$E$20,2) -> 2008.89 | J35: 0.1421350966 | M35: =$E$20 -> 1758.89 | N35: =ROUND(IF($E$20*$C35<$D35,$D35,IF($E$20*$C35>$E35,$E35,$E$20*$C35))+$E$20,2) -> 2008.89
B36: 2023-11-01 | C36: 0.08 | D36: 290 | E36: 650 | G36: mit SZ | H36: =$E$20*2 -> 3517.78 | I36: =ROUND((IF($E$20*$C36<$D36,$D36,IF($E$20*$C36>$E36,$E36,$E$20*$C36))+$E$20)*2,2) -> 4097.78 | J36: 0.164876712 | M36: =$E$20 -> 1758.89 | N36: =ROUND(IF($E$20*$C36<$D36,$D36,IF($E$20*$C36>$E36,$E36,$E$20*$C36))+$E$20,2) -> 2048.89
H38: =SUM(H25:H36) -> 24624.46 | I38: =SUM(I25:I36) -> 27884.46 | M38: =SUM(M25:M36) -> 24624.46 | N38: =SUM(N25:N36) -> 27824.48
G39: Erhöhung in Euro | I39: =I38-H38 -> 3260 | N39: =N38-M38 -> 3200.02
G40: Durchschnittl. Erhöhung | I40: =I38/H38-1 -> 0.1323886899 | N40: =N38/M38-1 -> 0.1299529005
C42: Abschluss | H42: DBO u. KV-EU | M42: AVB | Q42: Erhöhungswert zu BASIS 11/22
C43: % | D43: min | E43: max | H43: Basis 12/23 | I43: neu | M43: Basis 12/23 | N43: neu | Q43: DBO | R43: % | S43: AVB | T43: %
B44: 2023-12-01 | C44: =B11 -> 0.083 | D44: 190 | H44: =I36/2 -> 2048.89 | I44: =IF(ROUND(H44*C44,2)<190,H44+190,ROUND(H44+H44*C44,2)) -> 2238.89 | J44: =I44/H44-1 -> 0.09273313843 | L44: mit SZ | M44: =N36*1.5 -> 3073.335 | N44: =I44*1.5 -> 3358.335 | Q44: =I44-H25 -> 480 | R44: =Q44/H25 -> 0.2728993854 | S44: =N44-M25 -> 720 | T44: =S44/M25 -> 0.2728993854
B45: 2024-01-01 | C45: =C44 -> 0.083 | D45: =D44 -> 190 | F45: =I45-H45 -> 190 | H45: =H44 -> 2048.89 | I45: =I44 -> 2238.89 | J45: =I45/H45-1 -> 0.09273313843 | M45: =M44/1.5 -> 2048.89 | N45: =N44/1.5 -> 2238.89 | Q45: =I45-H26 -> 480 | R45: =Q45/H26 -> 0.2728993854 | S45: 480 | T45: =S45/M26 -> 0.2728993854
B46: 2024-02-01 | C46: =C45 -> 0.083 | D46: 190 | H46: =H45 -> 2048.89 | I46: =I45 -> 2238.89 | J46: 0.09273313843 | M46: =M45 -> 2048.89 | N46: =N45 -> 2238.89 | Q46: 480 | R46: 0.2728993854 | S46: 480 | T46: 0.2728993854
B47: 2024-03-01 | C47: 0.083 | D47: =D46 -> 190 | H47: 2048.89 | I47: =I46 -> 2238.89 | J47: 0.09273313843 | L47: mit SZ | M47: =M46*1.5 -> 3073.335 | N47: =N46*1.5 -> 3358.335 | Q47: 480 | R47: 0.2728993854 | S47: 720 | T47: 0.2728993854
B48: 2024-04-01 | C48: 0.083 | D48: 190 | H48: 2048.89 | I48: =I47 -> 2238.89 | J48: 0.09273313843 | M48: =M47/1.5 -> 2048.89 | N48: =N47/1.5 -> 2238.89 | Q48: 480 | R48: 0.2728993854 | S48: 480 | T48: 0.2728993854
B49: 2024-05-01 | C49: 0.083 | D49: 190 | H49: 2048.89 | I49: =I48 -> 2238.89 | J49: 0.09273313843 | M49: =M48 -> 2048.89 | N49: =N48 -> 2238.89 | Q49: 480 | R49: 0.2728993854 | S49: 480 | T49: 0.2728993854
B50: 2024-06-01 | C50: 0.083 | D50: 190 | G50: mit SZ | H50: =H49*2 -> 4097.78 | I50: =I49*2 -> 4477.78 | J50: 0.09273313843 | L50: mit SZ | M50: =M49*1.5 -> 3073.335 | N50: =N49*1.5 -> 3358.335 | Q50: 960 | R50: 0.2728993854 | S50: 720 | T50: 0.2728993854
B51: 2024-07-01 | C51: 0.083 | D51: 190 | H51: =H50/2 -> 2048.89 | I51: =I50/2 -> 2238.89 | J51: 0.09273313843 | M51: =M50/1.5 -> 2048.89 | N51: =N50/1.5 -> 2238.89 | Q51: 480 | R51: 0.2728993854 | S51: 480 | T51: 0.2728993854
B52: 2024-08-01 | C52: 0.083 | D52: 190 | H52: 2048.89 | I52: =I51 -> 2238.89 | J52: 0.09273313843 | M52: =M51 -> 2048.89 | N52: =N51 -> 2238.89 | Q52: 480 | R52: 0.2728993854 | S52: 480 | T52: 0.2728993854
B53: 2024-09-01 | C53: 0.083 | D53: 190 | H53: 2048.89 | I53: =I52 -> 2238.89 | J53: 0.09273313843 | L53: mit SZ | M53: =M52*1.5 -> 3073.335 | N53: =N52*1.5 -> 3358.335 | Q53: 480 | R53: 0.2728993854 | S53: 720 | T53: 0.2728993854
B54: 2024-10-01 | C54: 0.083 | D54: 190 | H54: 2048.89 | I54: 2238.89 | J54: 0.09273313843 | M54: =M53/1.5 -> 2048.89 | N54: =N53/1.5 -> 2238.89 | Q54: 480 | R54: 0.2728993854 | S54: 480 | T54: 0.2728993854
B55: 2024-11-01 | C55: 0.083 | D55: 190 | G55: mit SZ | H55: =H54*2 -> 4097.78 | I55: =I54*2 -> 4477.78 | J55: 0.09273313843 | M55: =M54 -> 2048.89 | N55: =N54 -> 2238.89 | Q55: =I55-H36 -> 960 | R55: 0.2728993854 | S55: 480 | T55: 0.2728993854
H57: =SUM(H44:H55) -> 28684.46 | I57: =SUM(I44:I55) -> 31344.46 | M57: =SUM(M44:M55) -> 28684.46 | N57: =SUM(N44:N55) -> 31344.46 | Q57: =SUM(Q44:Q55) -> 6720 | S57: =SUM(S44:S55) -> 6720
G58: Erhöhung in Euro | I58: =I57-H57 -> 2660 | N58: =N57-M57 -> 2660
G59: Durchschnittl. Erhöhung | I59: =I57/H57-1 -> 0.09273313843 | N59: =N57/M57-1 -> 0.09273313843
G61: SUMME 2 Jahre | I61: =I58+I39 -> 5920 | N61: =N58+N39 -> 5860.02
G62: ÖBB Teuerungsausgleich | I62: 1800 | N62: 1800
G63: GESAMT | I63: =I61+I62 -> 7720 | N63: =N61+N62 -> 7660.02

Sheet Aufstellung nach Monaten
B3: Abschluss | G3: DBO u. KV-EU | P3: AVB
B4: % | C4: min | D4: max | H4: Basis 11/22 | J4: neu | L4: Diferenz | M4: Prozent | Q4: Basis 11/22 | S4: neu | U4: Diferenz | V4: Prozent
A5: 2022-12-01 | B5: 0.08 | C5: 210 | D5: 650 | F5: 2022-12-01 | H5: ='kv2023'!E3:F3 -> 1758.89 | I5: 0 | J5: ='kv2023'!E4:F4 -> 1968.89 | K5: 0 | L5: =J5-H5 -> 210 | M5: =J5/H5-1 -> 0.1193934811 | O5: 2022-12-01 | P5: mit SZ | Q5: ='kv2023'!E3:F3*1.5 -> 2638.335 | R5: 0 | S5: ='kv2023'!E4:F4*1.5 -> 2953.335 | T5: 0 | U5: =S5-Q5 -> 315 | V5: =S5/Q5-1 -> 0.1193934811
A6: 2023-01-01 | B6: 0.08 | C6: 210 | D6: 650 | F6: 2023-01-01 | H6: =$H$5 -> 1758.89 | J6: =J5 -> 1968.89 | L6: =J6-H6 -> 210 | M6: =J6/H6-1 -> 0.1193934811 | O6: 2023-01-01 | Q6: =Q5/1.5 -> 1758.89 | S6: =S5/1.5 -> 1968.89 | U6: =S6-Q6 -> 210 | V6: =S6/Q6-1 -> 0.1193934811
A7: 2023-02-01 | B7: 0.08 | C7: 210 | D7: 650 | F7: 2023-02-01 | H7: =$H$5 -> 1758.89 | J7: =J6 -> 1968.89 | L7: 210 | M7: 0.1193934811 | O7: 2023-02-01 | Q7: =Q5/1.5 -> 1758.89 | S7: =S6 -> 1968.89 | U7: 210 | V7: 0.1193934811
A8: 2023-03-01 | B8: 0.08 | C8: 210 | D8: 650 | F8: 2023-03-01 | H8: 1758.89 | J8: 1968.89 | L8: 210 | M8: 0.1193934811 | O8: 2023-03-01 | P8: mit SZ | Q8: =Q5 -> 2638.335 | S8: =S7*1.5 -> 2953.335 | U8: 315 | V8: 0.1193934811
A9: 2023-04-01 | B9: 0.08 | C9: 210 | D9: 650 | F9: 2023-04-01 | H9: 1758.89 | J9: 1968.89 | L9: 210 | M9: 0.1193934811 | O9: 2023-04-01 | Q9: =Q6 -> 1758.89 | S9: =S8/1.5 -> 1968.89 | U9: 210 | V9: 0.1193934811
A10: 2023-05-01 | B10: 0.08 | C10: 210 | D10: 650 | F10: 2023-05-01 | H10: 1758.89 | J10: 1968.89 | L10: 210 | M10: 0.1193934811 | O10: 2023-05-01 | Q10: =Q8/1.5 -> 1758.89 | S10: =S9 -> 1968.89 | U10: 210 | V10: 0.1193934811
A11: 2023-06-01 | B11: 0.08 | C11: 210 | D11: 650 | F11: 2023-06-01 | G11: mit SZ | H11: =$H$5*2 -> 3517.78 | J11: =J10*2 -> 3937.78 | L11: 420 | M11: 0.1193934811 | O11: 2023-06-01 | P11: mit SZ | Q11: =Q8 -> 2638.335 | S11: =S10*1.5 -> 2953.335 | U11: 315 | V11: 0.1193934811
A12: 2023-07-01 | B12: 0.08 | C12: 250 | D12: 650 | F12: 2023-07-01 | H12: 1758.89 | J12: ='kv2023'!E5:F5 -> 2008.89 | K12: 0 | L12: 250 | M12: 0.1421350966 | O12: 2023-07-01 | Q12: =Q9 -> 1758.89 | S12: ='kv2023'!E5:F5 -> 2008.89 | T12: 0 | U12: 250 | V12: 0.1421350966
A13: 2023-08-01 | B13: 0.08 | C13: 250 | D13: 650 | F13: 2023-08-01 | H13: 1758.89 | J13: =J12 -> 2008.89 | L13: 250 | M13: 0.1421350966 | O13: 2023-08-01 | Q13: =Q11/1.5 -> 1758.89 | S13: =S12 -> 2008.89 | U13: 250 | V13: 0.1421350966
A14: 2023-09-01 | B14: 0.08 | C14: 250 | D14: 650 | F14: 2023-09-01 | H14: 1758.89 | J14: =J13 -> 2008.89 | L14: 250 | M14: 0.1421350966 | O14: 2023-09-01 | P14: mit SZ | Q14: =Q11 -> 2638.335 | S14: =S13*1.5 -> 3013.335 | U14: 375 | V14: 0.1421350966
A15: 2023-10-01 | B15: 0.08 | C15: 250 | D15: 650 | F15: 2023-10-01 | H15: 1758.89 | J15: =J14 -> 2008.89 | L15: 250 | M15: 0.1421350966 | O15: 2023-10-01 | Q15: =Q12 -> 1758.89 | S15: =S14/1.5 -> 2008.89 | U15: 250 | V15: 0.1421350966
A16: 2023-11-01 | B16: 0.08 | C16: 290 | D16: 650 | F16: 2023-11-01 | G16: mit SZ | H16: =$H$5*2 -> 3517.78 | J16: ='kv2023'!E6:F6*2 -> 4097.78 | K16: 0 | L16: 580 | M16: 0.164876712 | O16: 2023-11-01 | Q16: =Q14/1.5 -> 1758.89 | S16: ='kv2023'!E6:F6 -> 2048.89 | T16: 0 | U16: 290 | V16: 0.164876712
A17: 2023-12-01 | B17: ='kv2023'!C44 -> 0.083 | C17: 480 | F17: 2023-12-01 | H17: 1758.89 | J17: ='kv2023'!E7:F7 -> 2238.89 | K17: 0 | L17: 480 | M17: 0.2728993854 | O17: 2023-12-01 | P17: mit SZ | Q17: =Q14 -> 2638.335 | S17: ='kv2023'!E7:F7*1.5 -> 3358.335 | T17: 0 | U17: 720 | V17: 0.2728993854
A18: 2024-01-01 | B18: =B17 -> 0.083 | C18: 480 | F18: 2024-01-01 | H18: 1758.89 | J18: =J17 -> 2238.89 | L18: 480 | M18: 0.2728993854 | O18: 2024-01-01 | Q18: =Q15 -> 1758.89 | S18: =S17/1.5 -> 2238.89 | U18: 480 | V18: 0.2728993854
A19: 2024-02-01 | B19: =B18 -> 0.083 | C19: 480 | F19: 2024-02-01 | H19: 1758.89 | J19: =J18 -> 2238.89 | L19: 480 | M19: 0.2728993854 | O19: 2024-02-01 | Q19: =Q17/1.5 -> 1758.89 | S19: =S18 -> 2238.89 | U19: 480 | V19: 0.2728993854
A20: 2024-03-01 | B20: =B19 -> 0.083 | C20: 480 | F20: 2024-03-01 | H20: 1758.89 | J20: =J19 -> 2238.89 | L20: 480 | M20: 0.2728993854 | O20: 2024-03-01 | P20: mit SZ | Q20: =Q17 -> 2638.335 | S20: =S19*1.5 -> 3358.335 | U20: 720 | V20: 0.2728993854
A21: 2024-04-01 | B21: =B20 -> 0.083 | C21: 480 | F21: 2024-04-01 | H21: 1758.89 | J21: =J20 -> 2238.89 | L21: 480 | M21: 0.2728993854 | O21: 2024-04-01 | Q21: =Q18 -> 1758.89 | S21: =S20/1.5 -> 2238.89 | U21: 480 | V21: 0.2728993854
A22: 2024-05-01 | B22: =B21 -> 0.083 | C22: 480 | F22: 2024-05-01 | H22: 1758.89 | J22: 2238.89 | L22: 480 | M22: 0.2728993854 | O22: 2024-05-01 | Q22: =Q20/1.5 -> 1758.89 | S22: =S21 -> 2238.89 | U22: 480 | V22: 0.2728993854
A23: 2024-06-01 | B23: 0.083 | C23: 480 | F23: 2024-06-01 | G23: mit SZ | H23: =$H$5*2 -> 3517.78 | J23: =J22*2 -> 4477.78 | L23: 960 | M23: 0.2728993854 | O23: 2024-06-01 | P23: mit SZ | Q23: =Q20 -> 2638.335 | S23: =S22*1.5 -> 3358.335 | U23: 720 | V23: 0.2728993854
A24: 2024-07-01 | B24: 0.083 | C24: 480 | F24: 2024-07-01 | H24: 1758.89 | J24: =J23/2 -> 2238.89 | L24: 480 | M24: 0.2728993854 | O24: 2024-07-01 | Q24: =Q21 -> 1758.89 | S24: =S23/1.5 -> 2238.89 | U24: 480 | V24: 0.2728993854
A25: 2024-08-01 | B25: 0.083 | C25: 480 | F25: 2024-08-01 | H25: 1758.89 | J25: =J24 -> 2238.89 | L25: 480 | M25: 0.2728993854 | O25: 2024-08-01 | Q25: =Q23/1.5 -> 1758.89 | S25: =S24 -> 2238.89 | U25: 480 | V25: 0.2728993854
A26: 2024-09-01 | B26: 0.083 | C26: 480 | F26: 2024-09-01 | H26: 1758.89 | J26: =J25 -> 2238.89 | L26: 480 | M26: 0.2728993854 | O26: 2024-09-01 | P26: mit SZ | Q26: =Q23 -> 2638.335 | S26: =S25*1.5 -> 3358.335 | U26: 720 | V26: 0.2728993854
A27: 2024-10-01 | B27: 0.083 | C27: 480 | F27: 2024-10-01 | H27: 1758.89 | J27: 2238.89 | L27: 480 | M27: 0.2728993854 | O27: 2024-10-01 | Q27: =Q24 -> 1758.89 | S27: =S26/1.5 -> 2238.89 | U27: 480 | V27: 0.2728993854
A28: 2024-11-01 | B28: 0.083 | C28: 480 | F28: 2024-11-01 | G28: mit SZ | H28: =$H$5*2 -> 3517.78 | J28: =J27*2 -> 4477.78 | L28: 960 | M28: 0.2728993854 | O28: 2024-11-01 | Q28: =Q26/1.5 -> 1758.89 | S28: =S27 -> 2238.89 | U28: 480 | V28: 0.2728993854
L29: =SUM(L5:L28) -> 9980 | U29: =SUM(U5:U28) -> 9920
